fUST/lending_fUST_20250311
["ID","MTS","AMOUNT","RATE_DAILY","PERIOD"]
[355869164,1741655438400,-2631141.84187805,0.000448,30]
[355869165,1741655438409,-592.75987409,0.00044873,2]
[355869166,1741655438420,-700.000001,0.00044878,2]
[355869168,1741655438430,-1446.88961474,0.0004488,2]
[355869170,1741655438439,-233.99,0.0004488,30]
[355869172,1741655438449,-194.99,0.0004488,30]
[355869174,1741655438458,-162.49,0.0004488,30]
[355869176,1741655438467,-207814.753666,0.0004489,3]
[355869178,1741655438477,-2931.73209784,0.0004489,3]
[355869181,1741655438486,-5873.75,0.00044899,120]
[355869182,1741655438495,-198.0,0.000449,30]
[355869185,1741655438505,-198.0,0.000449,30]
[355869187,1741655438515,-200000.0,0.000449,30]
[355869189,1741655438524,-198.0,0.000449,120]
[355869191,1741655438533,-7205.24,0.000449,30]
[355869193,1741655438542,-472.85,0.000449,30]
[355869195,1741655438551,-411.95,0.000449,30]
[355869197,1741655438562,-51953.6884166,0.00044963,3]
[355869199,1741655438572,-732.93302446,0.00044963,3]
[355869201,1741655438581,-500.0,0.00044973,10]
[355869202,1741655438590,-500.0,0.00044973,10]
[355869203,1741655438599,-500.0,0.00044973,10]
[355869204,1741655438609,-500.0,0.00044973,10]
[355869205,1741655438618,-500.0,0.00044973,10]
[355869206,1741655438627,-614.0316575,0.00044973,2]
[355869207,1741655438637,-500.0,0.00044973,10]
[355869208,1741655438646,-151.0,0.00044973,2]
[355869209,1741655438655,-600.0,0.00044973,2]
[355869210,1741655438677,-172.476,0.0004498,72]
[355869211,1741655438688,-206.18,0.00044989,30]
[355869212,1741655438699,-1000.0,0.00044989,2]
[355869213,1741655438709,-51953.6884166,0.0004499,3]
[355869214,1741655438719,-2198.79907338,0.0004499,3]
[355869215,1741655438729,-500.0,0.00044999,120]
[355869216,1741655438740,-50000.0,0.00045,2]
[355869217,1741655438750,-50000.0,0.00045,2]
[355869218,1741655438760,-35220.8597346,0.00045,2]
[355869219,1741655438771,-2288.31,0.00045,30]
[355869220,1741655438781,-742.35,0.00045,30]
[355869221,1741655438791,-1646.57868324,0.00045,30]
[355869222,1741655438801,-622.2,0.00045028,2]
[355869223,1741655438813,-645.2214,0.00045083,2]
[355869225,1741655438823,-669.0945918,0.00045138,2]
[355869227,1741655438833,-693.8510917,0.00045193,2]
[355869229,1741655438843,-500.0,0.00045205,12]
[355869230,1741655438854,-719.52358209,0.00045248,2]
[355869231,1741655438864,-746.14595463,0.00045303,2]
[355869232,1741655438875,-773.75335495,0.00045358,2]
[355869233,1741655438887,-433.47605204,0.0004541,2]
[355869234,1741655438897,-802.38222908,0.00045413,2]
[355869235,1741655438907,-832.07037156,0.00045468,2]
[355869237,1741655438918,-156.587,0.00045521,2]
[355869238,1741655438928,-862.8569753,0.00045523,2]
[355869239,1741655438939,-894.78268339,0.00045578,2]
[355869240,1741655438949,-927.88964268,0.00045633,2]
[355869241,1741655438960,-500.0,0.00045684,120]
[355869242,1741655438970,-962.22155946,0.00045688,2]
[355869243,1741655438981,-997.82375716,0.00045743,2]
[355869244,1741655438990,-1034.74323617,0.00045798,2]
[355869245,1741655439000,-7205.24,0.000458,30]
[355869246,1741655439011,-472.85,0.000458,30]
[355869248,1741655439021,-411.95,0.000458,30]
[355869250,1741655439031,-1073.02873591,0.00045853,2]
[355869251,1741655439042,-1112.73079914,0.00045908,2]
[355869252,1741655439052,-1153.9018387,0.00045963,2]
[355869253,1741655439066,-200.0,0.00046,30]
[355869254,1741655439077,-200.0,0.00046,30]
[355869256,1741655439087,-1800.0,0.00046018,2]
[355869257,1741655439097,-260.60841709,0.00046069,2]
[355869258,1741655439108,-160.0,0.00046226,3]
[355869260,1741655439119,-5873.75,0.00046269,120]
[355869261,1741655439129,-172.84,0.000463,30]
[355869262,1741655439139,-206.18,0.00046359,30]
[355869263,1741655439149,-732.93302446,0.00046359,4]
[355869264,1741655439159,-160.0,0.00046432,4]
[355869265,1741655439169,-500.0,0.00046575,120]
[355869266,1741655439180,-500.0,0.00046575,120]
[355869267,1741655439189,-160.0,0.00046638,5]
[355869268,1741655439199,-7205.24,0.000467,30]
[355869269,1741655439209,-472.85,0.000467,30]
[355869270,1741655439219,-411.95,0.000467,30]
[355869271,1741655439229,-152.96670074,0.00046771,20]
[355869272,1741655439239,-198.0,0.000468,120]
[355869273,1741655439249,-198.0,0.000468,120]
[355869274,1741655439259,-1702.52668902,0.00046805,23]
[355869275,1741655439268,-160.0,0.00046844,6]
[355869276,1741655439278,-500.0,0.00046849,120]
[355869277,1741655439296,-500.0,0.00046849,120]
[355869278,1741655439307,-500.0,0.00046849,120]
[355869279,1741655439319,-500.0,0.00046849,120]
[355869280,1741655439328,-500.0,0.00046849,120]
[355869281,1741655439338,-500.0,0.00046849,120]
[355869282,1741655439348,-500.0,0.00046849,120]
[355869283,1741655439358,-500.0,0.00046849,120]
[355869284,1741655439368,-500.0,0.00046849,120]
[355869285,1741655439379,-266.0,0.00046849,120]
[355869286,1741655439389,-500.0,0.00046849,120]
[355869287,1741655439400,-500.0,0.00046849,120]
[355869288,1741655439410,-500.0,0.00046849,120]
[355869289,1741655439423,-500.0,0.00046849,120]
[355869290,1741655439433,-500.0,0.00046849,120]
[355869291,1741655439443,-500.0,0.00046849,120]
[355869292,1741655439453,-500.0,0.00046849,120]
[355869293,1741655439462,-519.86265993,0.00046849,120]
[355869294,1741655439472,-688.91,0.000469,30]
[355869295,1741655439482,-500.0,0.000469,10]
[355869296,1741655439494,-545.42852962,0.000469,10]
[355869297,1741655439505,-500.0,0.000469,10]
[355869298,1741655439516,-557.4596,0.000469,10]
[355869299,1741655439526,-500.0,0.000469,10]
[355869300,1741655439536,-500.0,0.000469,10]
[355869301,1741655439547,-302.20059007,0.000469,10]
[355869302,1741655439558,-500.0,0.000469,10]
[355869303,1741655439569,-500.0,0.000469,10]
[355869304,1741655439579,-500.0,0.000469,10]
[355869305,1741655439589,-500.0,0.000469,10]
[355869306,1741655439599,-500.0,0.000469,10]
[355869307,1741655439609,-500.0,0.000469,10]
[355869308,1741655439619,-500.0,0.000469,10]
[355869309,1741655439629,-160.0,0.00047049,7]
[355869310,1741655439639,-500.0,0.00047123,120]
[355869311,1741655439649,-500.0,0.00047123,120]
[355869312,1741655439659,-168.183616,0.00047123,2]
[355869313,1741655439670,-500.0,0.00047124,10]
[355869314,1741655439682,-500.95458269,0.00047124,3]
[355869315,1741655439692,-501.86694471,0.00047124,10]
[355869321,1741655439933,-500.0,0.00047124,10]
[355869322,1741655439943,-936.56142489,0.00047145,2]
[355869323,1741655439953,-160.0,0.00047255,8]
[355869324,1741655439963,-500.0,0.00047397,120]
[355869325,1741655439973,-160.0,0.00047461,9]
[355869326,1741655439983,-2965.63532801,0.00047639,120]
[355869327,1741655440002,-770.73,0.00047639,120]
[355869352,1741655440623,-513.00887794,0.00047639,120]
[355869354,1741655440635,-1624.37579405,0.00047639,120]
[355869356,1741655440645,-160.0,0.00047666,10]
[355869358,1741655440655,-500.0,0.00047671,120]
[355869360,1741655440664,-500.0,0.00047671,120]
[355869362,1741655440674,-206.18,0.00047729,30]
[355869364,1741655440683,-732.93302446,0.0004779,4]
[355869366,1741655440692,-742.35,0.000478,30]
[355869368,1741655440702,-7205.24,0.000478,30]
[355869370,1741655440712,-472.85,0.000478,30]
[355869372,1741655440721,-411.95,0.000478,30]
[355869374,1741655440731,-688.91,0.000478,30]
[355869376,1741655440741,-1000.0,0.000478,120]
[355869378,1741655440751,-160.0,0.00047872,11]
[355869380,1741655440760,-2288.31,0.000479,30]
[355869382,1741655440769,-500.0,0.00047945,120]
[355869384,1741655440779,-5608.19230942,0.00047945,10]
[355869386,1741655440789,-2721.43,0.00048,90]
[355869388,1741655440798,-200.0,0.00048,60]
[355869390,1741655440811,-198.0,0.00048,120]
[355869392,1741655440821,-198.0,0.00048,60]
[355869394,1741655440831,-508.0,0.00048,38]
[355869396,1741655440841,-198.0,0.00048,120]
[355869398,1741655440850,-198.0,0.00048,30]
[355869400,1741655440860,-198.0,0.00048,120]
[355869402,1741655440869,-160.0,0.00048078,12]
[355869404,1741655440879,-500.0,0.00048219,120]
[355869406,1741655440888,-500.0,0.00048219,120]
[355869408,1741655440898,-160.0,0.00048284,13]
[355869410,1741655440907,-150.0,0.00048413,2]
[355869412,1741655440917,-179.0,0.00048413,2]
[355869414,1741655440926,-287.3386189,0.00048424,2]
[355869416,1741655440936,-160.0,0.00048489,14]
[355869418,1741655440946,-500.0,0.00048493,120]
[355869420,1741655440955,-160.0,0.00048695,15]
[355869422,1741655440965,-172.84,0.000487,30]
[355869424,1741655440975,-688.91,0.000487,30]
[355869426,1741655440985,-500.0,0.00048767,120]
[355869428,1741655440995,-399.5,0.00048767,120]
[355869430,1741655441005,-512.66521294,0.00048799,18]
[355869432,1741655441015,-7205.24,0.000488,30]
[355869434,1741655441025,-472.85,0.000488,30]
[355869435,1741655441035,-411.95,0.000488,30]
[355869437,1741655441044,-671.66393856,0.00048813,10]
[355869439,1741655441054,-160.0,0.00048901,16]
[355869441,1741655441066,-500.0,0.0004891,6]
[355869443,1741655441076,-921.80894842,0.0004892,2]
[355869445,1741655441085,-150.0,0.00048973,10]
[355869447,1741655441096,-500.0,0.00049,30]
[355869450,1741655441105,-500.0,0.00049,30]
[355869452,1741655441115,-500.0,0.00049,120]
[355869454,1741655441125,-1911.26,0.00049,2]
[355869455,1741655441134,-25493.70322514,0.00049,120]
[355869509,1741655443009,153.0,0.00043,90]
[355869511,1741655443379,-307.15338823,0.0004479,10]
[355869512,1741655443391,-3340.17661177,0.0004479,10]
[355869513,1741655443401,-160.0,0.000469,10]
[355869514,1741655443412,-8410.15765828,0.00049,120]
[355869515,1741655443487,-3715.02089773,0.00049,120]
[355869605,1741655446470,-153.0,0.00044877,90]
[355869606,1741655446480,-12182.0562677,0.00049,120]
[355869607,1741655446494,-9915.24874591,0.00049,120]
[355869612,1741655446588,-64710.8355337,0.00049,120]
[355869613,1741655446599,-5873.75,0.00049009,120]
[355869614,1741655446609,-200.2744941,0.00049041,31]
[355869615,1741655446619,-500.0,0.00049047,6]
[355869616,1741655446630,-206.18,0.00049099,30]
[355869617,1741655446640,-732.93302446,0.00049099,4]
[355869618,1741655446650,-160.0,0.00049106,17]
[355869619,1741655446660,-500.0,0.00049184,6]
[355869620,1741655446670,-742.35,0.000492,30]
[355869621,1741655446679,-1000.0,0.00049229,7]
[355869622,1741655446689,-1000.0,0.00049229,10]
[355869623,1741655446699,-160.0,0.00049312,18]
[355869624,1741655446708,-500.0,0.00049315,120]
[355869625,1741655446718,-150.0,0.00049315,10]
[355869626,1741655446728,-150.0,0.00049315,10]
[355869627,1741655446738,-500.0,0.00049321,6]
[355869628,1741655446749,-173.98531387,0.000494,2]
[355869629,1741655446758,-500.0,0.00049458,6]
[355869630,1741655446768,-260.77029428,0.00049473,10]
[355869631,1741655446778,-500.0,0.00049473,10]
[355869632,1741655446788,-500.0,0.00049473,10]
[355869633,1741655446798,-388.21808339,0.00049473,10]
[355869634,1741655446807,-500.0,0.00049473,10]
[355869635,1741655446821,-500.0,0.00049473,10]
[355869636,1741655446832,-500.0,0.00049473,10]
[355869637,1741655446842,-500.0,0.00049473,10]
[355869638,1741655446852,-474.76514131,0.00049473,10]
[355869639,1741655446862,-1465.86604892,0.0004949,4]
[355869640,1741655446872,-7374.3650239,0.000495,30]
[355869655,1741655548829,211.57109935,0.0003,30]
[355869658,1741655837948,5000.0,0.00027,60]
[355869659,1741655857299,5002.59,0.00027,60]
[355869663,1741656328593,275.45,0.00027,60]
[355869664,1741656331096,-500.0,0.0003,7]
[355869665,1741656331120,-5100.99785209,0.00035,2]
[355869666,1741656331144,-500.0,0.0004,120]
[355869667,1741656331166,-275.7127957,0.00042765,2]
[355869668,1741656331188,-150.0,0.000429,2]
[355869669,1741656331210,-2000.0,0.00044,15]
[355869670,1741656331233,-2000.0,0.00044,15]
[355869671,1741656331257,-500.0,0.00044,15]
[355869672,1741656331282,-2000.0,0.000443,15]
[355869673,1741656331305,-196.0,0.000444,2]
[355869674,1741656331328,-2000.0,0.000444,15]
[355869675,1741656331352,-799.99,0.0004457,120]
[355869676,1741656331375,-800.02,0.0004457,120]
[355869677,1741656331398,-160.0,0.000448,3]
[355869678,1741656331420,-171.82,0.00044999,30]
[355869679,1741656331442,-172.271,0.00044999,72]
[355869680,1741656331462,-160.0,0.0004568,4]
[355869681,1741656331485,-171.82,0.00046369,30]
[355869682,1741656331507,-160.0,0.0004656,5]
[355869683,1741656331532,-500.0,0.00046575,120]
[355869684,1741656331555,-500.0,0.00046575,120]
[355869685,1741656331576,-500.0,0.00046849,120]
[355869686,1741656331598,-500.0,0.00047123,120]
[355869687,1741656331622,-500.0,0.00047123,120]
[355869688,1741656331645,-160.0,0.00047439,6]
[355869689,1741656331674,-171.82,0.00047739,30]
[355869690,1741656331699,-150.0,0.000479,2]
[355869691,1741656331722,-198.0,0.00048,120]
[355869692,1741656331746,-198.0,0.00048,120]
[355869693,1741656331773,-2201.717399,0.00048,2]
[355869694,1741656331795,-433.0,0.00048,90]
[355869695,1741656331818,-160.0,0.00048319,7]
[355869696,1741656331841,-433.0,0.00048356,90]
[355869697,1741656331867,-150.0,0.00048473,2]
[355869698,1741656331891,-150.0,0.00048473,2]
[355869699,1741656331914,-1758.94,0.0004848,10]
[355869700,1741656331939,-2746.29,0.0004848,10]
[355869701,1741656331962,-479.96308239,0.00048489,31]
[355869702,1741656331987,-284.68747026,0.00048489,120]
[355869703,1741656332015,-500.0,0.00048489,2]
[355869704,1741656332044,-500.0,0.00048489,2]
[355869705,1741656332068,-16162.93317715,0.0004849,4]
[355869707,1741656434125,-228.57541403,0.0004839,28]
[355869708,1741656434147,-1058.70210155,0.000484,120]
[355869739,1741656568107,-3225.10548872,0.000439,2]
[355869782,1741656632683,-2000.0,0.0004457,120]
[355869783,1741656632693,-2000.0,0.0004457,120]
[355869784,1741656632703,-999.99,0.00045846,120]
[355869785,1741656632713,-1044.18,0.00045846,120]
[355869786,1741656632723,-200.00348732,0.0004829,28]
[355869787,1741656632732,-13578.97128972,0.000483,30]
[355869794,1741656638567,-394.93461597,0.00048299,2]
[355869795,1741656638577,-185.56980904,0.00048299,2]
[355869796,1741656638586,-2792.32197729,0.000483,30]
[355869797,1741656638598,-19993.25,0.000483,30]
[355869811,1741656638994,-5239.66475295,0.000483,30]
[355869812,1741656639019,-6656.47365543,0.000483,30]
[355869813,1741656639029,-2327.36,0.00048388,10]
[355869814,1741656639038,-35559.4352328,0.0004839,4]
[355869815,1741656639053,-256.52655856,0.0004839,4]
[355869816,1741656639063,-199.28122918,0.00048397,120]
[355869817,1741656639074,-335.97415768,0.00048397,31]
[355869818,1741656639084,-77181.52304206,0.00048398,120]
[355869819,1741656639094,-54496.29789845,0.000484,120]
[355869820,1741656639104,-4420.28,0.000484,30]
[355869821,1741656639114,-500.0,0.00048473,10]
[355869822,1741656639124,-398.0,0.00048473,2]
[355869823,1741656639135,-4894.79,0.00048489,120]
[355869824,1741656639145,-248916.046629,0.0004849,4]
[355869825,1741656639155,-1795.68590992,0.0004849,4]
[355869826,1741656639164,-326044.6,0.000485,120]
[355869827,1741656639174,-381.16,0.000485,30]
[355869828,1741656639184,-500.0,0.000485,120]
[355869829,1741656639195,-161.03017844,0.00048849,120]
[355869830,1741656639206,-500.0,0.0004891,6]
[355869831,1741656639216,-603.81775187,0.0004892,2]
[355869832,1741656639226,-200.00348725,0.0004897,28]
[355869833,1741656639236,-1720.13,0.00049,2]
[355869834,1741656639246,-7263.0,0.00049,2]
[355869835,1741656639256,-500.0,0.00049047,6]
[355869836,1741656639266,-656.89824639,0.0004906,2]
[355869837,1741656639275,-10025.34169551,0.000491,2]
[355869838,1741656639285,-171.82,0.00049109,30]
[355869839,1741656639298,-500.0,0.00049184,6]
[355869840,1741656639308,-160.0,0.00049199,8]
[355869841,1741656639318,-500.0,0.00049232,120]
[355869842,1741656639328,-210.0,0.00049315,120]
[355869843,1741656639337,-150.0,0.00049315,10]
[355869844,1741656639346,-150.0,0.00049315,10]
[355869845,1741656639355,-500.0,0.00049321,6]
[355869846,1741656639365,-151.0,0.0004937,2]
[355869847,1741656639375,-600.0,0.0004937,2]
[355869848,1741656639384,-256.52655856,0.0004937,4]
[355869849,1741656639393,-500.0,0.00049373,10]
[355869850,1741656639403,-306.03888274,0.00049373,7]
[355869851,1741656639412,-500.0,0.00049373,10]
[355869852,1741656639422,-500.0,0.00049373,10]
[355869853,1741656639431,-500.0,0.00049373,10]
[355869854,1741656639440,-500.0,0.00049373,10]
[355869855,1741656639450,-500.0,0.00049373,10]
[355869856,1741656639459,-500.0,0.00049373,10]
[355869857,1741656639469,-500.0,0.00049373,10]
[355869858,1741656639479,-769.57967568,0.0004938,4]
[355869859,1741656639488,-256.52655856,0.00049387,4]
[355869860,1741656639498,-152082.39795298,0.0004939,2]
[355869861,1741656639734,-1539.15935136,0.0004939,4]
[355869862,1741656639752,-31557.88,0.00049397,30]
[355869863,1741656639763,-500.0,0.00049399,120]
[355869864,1741656639776,-222000.0,0.000494,2]
[355869865,1741656639786,-56848.68054649,0.000494,120]
[355869866,1741656639798,-558.79,0.000494,30]
[355869867,1741656639808,-381.16,0.000494,30]
[355869868,1741656639819,-27028.61033659,0.000494,120]
[355869869,1741656639828,-4420.28,0.000494,30]
[355869870,1741656639838,-155.3619476,0.00049425,30]
[355869871,1741656639848,-622.2,0.00049425,2]
[355869872,1741656639858,-500.0,0.00049458,6]
[355869873,1741656639867,-640.6949944,0.00049473,7]
[355869874,1741656639877,-250.0,0.00049473,10]
[355869875,1741656639895,-645.2214,0.0004948,2]
[355869876,1741656639905,-256.52655856,0.0004949,4]
[355869877,1741656639915,-42625.6349761,0.000495,30]
[355869878,1741656639924,-23452.88,0.000495,30]
[355869879,1741656639934,-50000.0,0.000495,30]
[355869880,1741656639944,-250.0,0.000495,30]
[355869881,1741656639953,-151.0,0.000495,14]
[355869882,1741656639962,-151.0,0.000495,14]
[355869883,1741656639972,-151.0,0.000495,14]
[355869884,1741656639981,-151.0,0.000495,14]
[355869885,1741656639991,-151.0,0.000495,14]
[355869886,1741656640000,-151.0,0.000495,14]
[355869887,1741656640009,-151.0,0.000495,14]
[355869888,1741656640018,-151.0,0.000495,14]
[355869889,1741656640028,-151.0,0.000495,14]
[355869890,1741656640038,-151.0,0.000495,14]
[355869891,1741656640049,-151.0,0.000495,14]
[355869892,1741656640058,-151.0,0.000495,14]
[355869894,1741656640070,-151.0,0.000495,14]
[355869895,1741656640079,-151.0,0.000495,14]
[355869896,1741656640089,-151.0,0.000495,14]
[355869897,1741656640098,-151.0,0.000495,14]
[355869898,1741656640108,-151.0,0.000495,14]
[355869899,1741656640117,-151.0,0.000495,14]
[355869900,1741656640127,-151.0,0.000495,14]
[355869901,1741656640137,-151.0,0.000495,14]
[355869902,1741656640148,-151.0,0.000495,14]
[355869903,1741656640160,-151.0,0.000495,14]
[355869904,1741656640171,-151.0,0.000495,14]
[355869905,1741656640183,-151.0,0.000495,14]
[355869906,1741656640195,-151.0,0.000495,14]
[355869907,1741656640207,-151.0,0.000495,14]
[355869908,1741656640217,-151.0,0.000495,14]
[355869909,1741656640227,-151.0,0.000495,14]
[355869910,1741656640237,-151.0,0.000495,14]
[355869911,1741656640246,-151.0,0.000495,14]
[355869912,1741656640256,-151.0,0.000495,14]
[355869913,1741656640266,-151.0,0.000495,14]
[355869914,1741656640276,-151.0,0.000495,14]
[355869915,1741656640286,-151.0,0.000495,14]
[355869916,1741656640298,-151.0,0.000495,14]
[355869917,1741656640308,-151.0,0.000495,14]
[355869918,1741656640318,-151.0,0.000495,14]
[355869919,1741656640328,-151.0,0.000495,14]
[355869920,1741656640338,-151.0,0.000495,14]
[355869921,1741656640347,-151.0,0.000495,14]
[355869922,1741656640356,-151.0,0.000495,14]
[355869923,1741656640366,-281.36285,0.000495,14]
[355869924,1741656640376,-11685.62982151,0.000495,2]
[355869926,1741656640385,-1168.51616972,0.00049535,2]
[355869928,1741656640395,-500.0,0.0004958,120]
[355869930,1741656640404,-160.2180837,0.00049589,30]
[355869932,1741656640413,-155.3619476,0.00049589,30]
[355869933,1741656640422,-500.0,0.00049595,6]
[355869934,1741656640432,-352.0,0.00049649,30]
[355869935,1741656640441,-352.0,0.00049649,30]
[355869937,1741656640450,-352.0,0.00049649,30]
[355869938,1741656640460,-352.0,0.00049649,30]
[355869939,1741656640469,-352.0,0.00049649,30]
[355869940,1741656640478,-316.0,0.00049649,30]
[355869941,1741656640488,-352.0,0.00049649,30]
[355869942,1741656640497,-316.0,0.00049649,30]
[355869943,1741656640507,-352.0,0.00049649,30]
[355869944,1741656640517,-316.0,0.00049649,30]
[355869945,1741656640526,-352.0,0.00049649,30]
[355869946,1741656640536,-316.0,0.00049649,30]
[355869947,1741656640548,-352.0,0.00049649,30]
[355869948,1741656640557,-316.0,0.00049649,30]
[355869949,1741656640567,-352.0,0.00049649,30]
[355869950,1741656640577,-316.0,0.00049649,30]
[355869951,1741656640587,-352.0,0.00049649,30]
[355869952,1741656640597,-352.0,0.00049649,30]
[355869953,1741656640606,-352.0,0.00049649,30]
[355869954,1741656640617,-316.0,0.00049649,30]
[355869955,1741656640626,-316.0,0.00049649,30]
[355869956,1741656640636,-352.0,0.00049649,30]
[355869957,1741656640646,-316.0,0.00049649,30]
[355869958,1741656640656,-352.0,0.00049649,30]
[355869959,1741656640671,-326.84608402,0.00049649,30]
[355869961,1741656640691,-352.0,0.00049649,30]
[355869963,1741656640701,-352.0,0.00049649,30]
[355869964,1741656640711,-352.0,0.00049649,30]
[355869965,1741656640721,-352.0,0.00049649,30]
[355869966,1741656640732,-352.0,0.00049649,30]
[355869967,1741656640741,-352.0,0.00049649,30]
[355869968,1741656640752,-352.0,0.00049649,30]
[355869969,1741656640762,-352.0,0.00049649,30]
[355869970,1741656640775,-202.74357343,0.00049649,30]
[355869971,1741656640784,-200.00348725,0.0004965,28]
[355869972,1741656640796,-168.0,0.00049652,30]
[355869973,1741656640807,-168.0,0.00049652,30]
[355869974,1741656640817,-168.0,0.00049652,30]
[355869975,1741656640826,-298.85875515,0.00049652,30]
[355869976,1741656640837,-352.0,0.00049652,30]
[355869977,1741656640853,-352.0,0.00049652,30]
[355869978,1741656640864,-352.0,0.00049652,30]
[355869979,1741656640874,-352.0,0.00049652,30]
[355869980,1741656640884,-352.0,0.00049652,30]
[355869981,1741656640894,-352.0,0.00049652,30]
[355869982,1741656640903,-352.0,0.00049652,30]
[355869983,1741656640913,-316.0,0.00049652,30]
[355869985,1741656640923,-352.0,0.00049652,30]
[355869986,1741656640932,-352.0,0.00049652,30]
[355869987,1741656640942,-316.0,0.00049652,30]
[355869988,1741656640952,-352.0,0.00049652,30]
[355869989,1741656640962,-316.0,0.00049652,30]
[355869990,1741656640972,-352.0,0.00049652,30]
[355869991,1741656640981,-316.0,0.00049652,30]
[355869992,1741656640990,-340.0,0.00049652,30]
[355869993,1741656641000,-316.0,0.00049652,30]
[355869994,1741656641010,-316.0,0.00049652,30]
[355869995,1741656641019,-155.36960483,0.00049652,30]
[355869996,1741656641028,-500.0,0.00049732,6]
[355869997,1741656641037,-483.13454319,0.00049844,40]
[355869998,1741656641048,-4894.79,0.00049859,120]
[355869999,1741656641057,-323.74516493,0.00049863,10]
[355870000,1741656641067,-229.10021221,0.00049863,10]
[355870001,1741656641077,-167.7966245,0.00049863,30]
[355870002,1741656641086,-155.3619476,0.00049863,30]
[355870003,1741656641096,-167.7966245,0.00049863,30]
[355870004,1741656641105,-155.3619476,0.00049863,30]
[355870005,1741656641115,-167.7966245,0.00049863,30]
[355870006,1741656641124,-500.0,0.00049868,6]
[355870007,1741656641134,-248.0,0.00049868,6]
[355870008,1741656641144,-650.76193848,0.00049876,93]
[355870009,1741656641153,-300.0,0.000499,27]
[355870010,1741656641162,-262.45,0.000499,30]
[355870011,1741656641172,-796.55,0.000499,30]
[355870012,1741656641182,-10637.9810148,0.000499,2]
[355870013,1741656641191,-204.6992929,0.00049918,2]
[355870014,1741656641201,-2795.8794042,0.00049938,4]
[355870015,1741656641211,-650.76193848,0.00049976,98]
[355870016,1741656641222,-242.31464548,0.00049999,30]
[355870017,1741656641231,-999.99999901,0.00049999,2]
[355870018,1741656641241,-29974.91244651,0.0005,2]
[355870019,1741656641251,-21984.0,0.0005,2]
[355870020,1741656641260,-181889.46431794,0.0005,120]
[355870021,1741656641702,-44220.0,0.0005,120]
[355870074,1741656643594,-8704.45,0.000483,2]
[355870075,1741656643688,-298.12347467,0.000483,2]
[355870076,1741656643738,-212997.42652533,0.000483,2]
[355870077,1741656643749,-1373890.53568206,0.0005,120]
[355870078,1741656643763,-550.12216406,0.0005,120]
[355870080,1741656643786,-199.9,0.0005,120]
[355870082,1741656643806,-2379.04,0.0005,30]
[355870083,1741656643817,-187.75,0.0005,30]
[355870085,1741656643828,-558.79,0.0005,30]
[355870087,1741656643840,-381.16,0.0005,30]
[355870089,1741656643851,-51623.42856335,0.0005,10]
[355870091,1741656643861,-525.43880399,0.0005,10]
[355870093,1741656643871,-48944.74256,0.0005,10]
[355870095,1741656643881,-4373.16869977,0.0005,120]
[355870097,1741656643891,-90528.54164485,0.0005,10]